bitfinex-derivatives/quotes_BTCF0:USTF0_20240902
["timestamp","ask_amount","ask_price","bid_price","bid_amount"]
[1725268532780,0.060275,58070.0,58060.0,0.060285]
[1725268532971,0.060275,58070.0,58060.0,0.421085]
[1725268533775,0.00384443,58061.0,58060.0,0.421085]
[1725268533978,0.00425836,58061.0,58060.0,0.466085]
[1725268534164,0.00425836,58061.0,58060.0,0.982805]
[1725268534372,0.00425836,58061.0,58060.0,1.582805]
[1725268534568,0.00425836,58061.0,58060.0,1.722805]
[1725268535670,0.00025836,58061.0,58060.0,1.722805]
[1725268536576,0.00025836,58061.0,58060.0,1.582805]
[1725268536780,0.00025836,58061.0,58060.0,0.3608]
[1725268536978,0.00025836,58061.0,58060.0,0.3628]
[1725268537282,0.06204009,58061.0,58060.0,0.423085]
[1725268537484,0.13272592,58061.0,58060.0,0.423085]
[1725268537672,0.06204009,58061.0,58060.0,0.423085]
[1725268537872,0.0656924,58061.0,58060.0,0.423085]
[1725268538483,0.0656924,58061.0,58060.0,0.421085]
[1725268538684,0.0656924,58061.0,58060.0,0.060285]
[1725268539188,0.0696924,58061.0,58060.0,0.061285]
[1725268542384,0.0696924,58061.0,58060.0,0.060285]
[1725268542976,0.0696924,58061.0,58060.0,0.061285]
[1725268545194,0.00791067,58061.0,58060.0,0.061285]
[1725268548287,0.00791067,58061.0,58060.0,0.060285]
[1725268549596,0.00791067,58061.0,58060.0,0.061285]
[1725268552493,0.00791067,58061.0,58060.0,0.060285]
[1725268554494,0.00791067,58061.0,58060.0,0.061285]
[1725268554684,0.00791067,58061.0,58060.0,0.156085]
[1725268555089,0.00791067,58061.0,58060.0,0.155085]
[1725268555594,0.00425836,58061.0,58060.0,1.271805]
[1725268555799,0.00225836,58061.0,58060.0,1.271805]
[1725268556291,0.00025836,58061.0,58060.0,1.271805]
[1725268556592,0.00225836,58061.0,58060.0,1.271805]
[1725268556897,0.00225836,58061.0,58060.0,0.671805]
[1725268557101,0.00225836,58061.0,58060.0,1.271805]
[1725268557595,3.6e-07,58061.0,58060.0,1.33209]
[1725268557899,0.3608,58073.0,58072.0,0.060273]
[1725268558390,0.08,58077.0,58076.0,0.060268]
[1725268558591,0.0455,58079.0,58078.0,0.060266]
[1725268559887,0.1855,58079.0,58078.0,0.060266]
[1725268560090,0.18905973,58079.0,58078.0,0.060266]
[1725268560388,0.25082728,58079.0,58073.0,0.0485]
[1725268560593,0.0004,58074.0,58071.0,0.00025836]
[1725268560898,0.06176755,58073.0,58072.0,0.060273]
[1725268561098,0.06076755,58073.0,58072.0,0.060273]
[1725268563099,0.0004,58074.0,58073.0,0.060271]
[1725268564201,0.00400018,58074.0,58073.0,0.060271]
[1725268564394,0.0004,58074.0,58073.0,0.060271]
[1725268567791,0.0004,58074.0,58071.0,0.00025836]
[1725268568108,0.3612,58072.0,58071.0,0.00025836]
[1725268569006,0.3612,58072.0,58056.0,0.924689]
[1725268569007,1.5243,58072.0,58056.0,0.924689]
[1725268569303,0.0004,58062.0,58056.0,0.925689]
[1725268569904,0.0004,58062.0,58056.0,0.92594736]
[1725268570306,0.3612,58062.0,58056.0,0.86565836]
[1725268570603,0.3612,58062.0,58056.0,0.00125836]
[1725268570604,0.0004,58059.0,58056.0,0.00125836]
[1725268570804,0.0004,58059.0,58056.0,0.00025836]
[1725268573806,0.0004,58059.0,58056.0,0.06054636]
[1725268575200,0.00409568,58059.0,58056.0,0.06054636]
[1725268575607,0.00409568,58059.0,58057.0,0.060288]
[1725268578399,0.00409568,58059.0,58056.0,0.00025836]
[1725268579001,0.05359568,58059.0,58056.0,0.00025836]
[1725268581705,0.11388168,58059.0,58056.0,0.00025836]
[1725268581911,0.19388168,58059.0,58056.0,0.00025836]
[1725268588017,0.13359568,58059.0,58056.0,0.00025836]
[1725268592130,0.00409568,58059.0,58056.0,0.00025836]
[1725268592529,0.00409568,58059.0,58058.0,0.2404]
[1725268593225,0.00409568,58059.0,58058.0,0.0004]
[1725268593827,0.00409568,58059.0,58058.0,0.060687]
[1725268594132,0.00409568,58059.0,58058.0,0.140687]
[1725268594836,0.00409568,58059.0,58058.0,0.060687]
[1725268598527,0.00409568,58059.0,58058.0,0.140687]
[1725268602340,0.00409568,58059.0,58058.0,0.060687]
[1725268602533,0.00409568,58059.0,58058.0,0.0004]
[1725268607737,0.14438168,58059.0,58058.0,0.0004]
[1725268608537,0.060288,58057.0,58056.0,0.00025836]
[1725268608852,0.060688,58057.0,58056.0,0.00025836]
[1725268609154,1.177408,58057.0,58056.0,0.00025836]
[1725268610546,1.177408,58057.0,58056.0,0.00125836]
[1725268610955,0.060293,58053.0,58048.0,0.3245]
[1725268611250,0.4412,58049.0,58048.0,0.3245]
[1725268611457,0.4412,58049.0,58041.0,0.08]
[1725268611646,0.0004,58042.0,58041.0,0.08]
[1725268612044,0.0004,58042.0,58040.0,0.4537]
[1725268612249,0.0004,58041.0,58040.0,0.4537]
[1725268612558,0.0004,58041.0,58040.0,0.5337]
[1725268612946,0.001,58042.0,58041.0,0.0086]
[1725268613141,0.001,58042.0,58041.0,0.009]
[1725268613349,0.001,58042.0,58041.0,0.0004]
[1725268613540,0.00025836,58047.0,58041.0,0.0004]
[1725268613742,0.00025836,58047.0,58046.0,0.0004]
[1725268614656,0.00389105,58047.0,58046.0,0.0004]
[1725268615865,0.00389105,58047.0,58046.0,0.0034]
[1725268623259,0.00389105,58047.0,58046.0,0.0637]
[1725268623454,0.00389105,58047.0,58046.0,0.1437]
[1725268623966,0.00389105,58047.0,58046.0,0.0637]
[1725268626264,0.44469105,58047.0,58046.0,0.0034]
[1725268633668,1.62182905,58047.0,58046.0,0.0034]
[1725268633963,0.060306,58041.0,58032.0,0.0956]
[1725268634155,0.0004,58033.0,58032.0,0.0956]
[1725268634765,0.0004,58033.0,58032.0,1.352874]
[1725268634967,0.0004,58033.0,58032.0,1.713674]
[1725268635653,0.0004,58033.0,58032.0,1.714674]
[1725268638100,0.0004,58033.0,58032.0,1.634674]
[1725268639667,0.00398652,58033.0,58032.0,1.273874]
[1725268639863,0.0004,58033.0,58032.0,1.273874]
[1725268640673,0.0004,58033.0,58032.0,0.673874]
[1725268641265,0.0004,58033.0,58032.0,0.0498]
[1725268641676,0.0004,58033.0,58032.0,0.001]
[1725268643271,0.00402092,58033.0,58032.0,0.001]
[1725268643480,0.0476,58033.0,58032.0,0.001]
[1725268643664,1.16456,58033.0,58032.0,0.001]
[1725268644867,1.224873,58033.0,58032.0,0.001]
[1725268646370,0.060314,58032.0,58018.0,0.646528]
[1725268646572,0.0004,58020.0,58018.0,0.107508]
[1725268646868,0.0004,58019.0,58018.0,0.106628]
[1725268648775,0.0004,58020.0,58019.0,0.0076]
[1725268648967,0.0004,58020.0,58019.0,0.008]
[1725268649172,0.0004,58020.0,58019.0,0.060728]
[1725268649776,0.00025836,58025.0,58020.0,0.060326]
[1725268649976,0.00025836,58025.0,58024.0,0.0004]
[1725268650278,0.00382409,58025.0,58024.0,0.0004]
[1725268650478,0.00025836,58025.0,58024.0,0.0004]
[1725268652079,0.00125836,58025.0,58024.0,0.0004]
[1725268652582,0.00025836,58025.0,58024.0,0.0034]
[1725268653781,0.00025836,58025.0,58024.0,0.063722]
[1725268654784,1.24105836,58025.0,57986.0,0.05147618]
[1725268654789,1.24105836,58025.0,57988.0,0.001]
[1725268654790,0.3608,57990.0,57988.0,0.001]
[1725268654874,0.14,57989.0,57980.0,0.3608]
[1725268655080,0.3608,57997.0,57986.0,0.3608]
[1725268655277,0.3608,57997.0,57981.0,0.1854]
[1725268655478,0.3608,57997.0,57983.0,0.060364]
[1725268655682,0.3608,57997.0,57988.0,0.014]
[1725268655683,0.001,57990.0,57988.0,0.014]
[1725268655881,0.001,57990.0,57989.0,0.0479]
[1725268656274,0.14,57990.0,57986.0,0.004]
[1725268656578,0.36449246,57997.0,57986.0,0.004]
[1725268656889,0.36449246,57997.0,57988.0,0.001]
[1725268657183,0.00025859,57995.0,57988.0,0.001]
[1725268657406,0.00025859,57995.0,57989.0,0.0473]
[1725268658477,0.00025859,57995.0,57985.0,0.3608]
[1725268658679,0.00025859,57995.0,57986.0,0.004]
[1725268659075,0.00025859,57995.0,57985.0,0.3608]
[1725268659778,0.00025859,57995.0,57986.0,0.004]
[1725268661533,0.00025859,57995.0,57985.0,0.3658]
[1725268661885,0.00025859,57995.0,57985.0,0.005]
[1725268662185,0.00025859,57995.0,57986.0,0.004]
[1725268662571,0.00025859,57995.0,57991.0,0.3608]
[1725268664786,0.00025859,57995.0,57992.0,0.24]
[1725268665184,0.00225859,57995.0,57992.0,0.24]
[1725268665786,0.00225859,57995.0,57993.0,0.060354]
[1725268666284,0.00325859,57995.0,57994.0,0.0462]
[1725268666483,0.00325859,57995.0,57994.0,0.0935]
[1725268666883,0.00325859,57995.0,57994.0,0.61078]
[1725268667081,0.060339,58008.0,58001.0,0.060346]
[1725268668689,0.3638,58007.0,58001.0,0.060346]
[1725268668892,0.36748018,58007.0,58001.0,0.060346]
[1725268669692,0.36648018,58007.0,58001.0,0.060346]
[1725268670490,0.36648018,58007.0,58002.0,0.0488]
[1725268671701,0.36448018,58007.0,58002.0,0.0488]
[1725268671893,0.36748018,58007.0,58002.0,0.0488]
[1725268672085,0.36748018,58007.0,58004.0,0.060343]
[1725268672390,0.36848018,58007.0,58004.0,0.060343]
[1725268673490,0.00768018,58007.0,58004.0,0.060343]
[1725268673877,0.00768018,58007.0,58006.0,0.5008]
[1725268674081,0.00768018,58007.0,58006.0,0.561141]
[1725268674299,0.00768018,58007.0,58006.0,0.421141]
[1725268674540,0.01068018,58007.0,58006.0,0.421141]
[1725268675194,0.01168018,58007.0,58006.0,0.001]
[1725268675381,0.008,58007.0,58006.0,0.001]
[1725268681001,0.06092145,58007.0,58006.0,0.001]
[1725268681291,0.12275975,58007.0,58006.0,0.001]
[1725268681792,0.12276077,58007.0,58006.0,0.001]
[1725268684288,0.34440127,58007.0,58006.0,0.061341]
[1725268684501,0.12276077,58007.0,58006.0,0.250541]
[1725268685085,0.34455873,58007.0,58006.0,0.298841]
[1725268685396,0.12276077,58007.0,58006.0,0.298841]
[1725268685784,0.12276077,58007.0,58006.0,0.816041]
[1725268685981,0.34450279,58007.0,58006.0,0.816041]
[1725268686191,0.34450279,58007.0,58006.0,0.298841]
[1725268686409,0.34450279,58007.0,58006.0,0.816041]
[1725268686599,0.0466,58019.0,58006.0,0.816041]
[1725268686600,0.17452579,58012.0,58006.0,1.3557]
[1725268686788,0.17452579,58012.0,58011.0,0.561136]
[1725268687012,0.11473483,58012.0,58011.0,0.561136]
[1725268687196,0.05290996,58012.0,58011.0,1.918256]
[1725268687695,0.00025859,58017.0,58016.0,0.060331]
[1725268687902,0.00025859,58017.0,58016.0,0.561131]
[1725268688195,0.00025859,58017.0,58016.0,1.678211]
[1725268689002,0.00125859,58017.0,58016.0,1.679211]
[1725268689594,0.00125859,58017.0,58016.0,1.682211]
[1725268689595,0.00025859,58017.0,58016.0,1.682211]
[1725268693702,0.00025859,58017.0,58016.0,1.082211]
[1725268695500,0.00025859,58017.0,58016.0,0.565131]
[1725268701004,0.00025859,58017.0,58016.0,0.204331]
[1725268701204,0.00025859,58017.0,58016.0,0.565131]
[1725268703606,0.05316679,58017.0,58016.0,0.425131]
[1725268705213,0.05416679,58017.0,58016.0,0.421131]
[1725268705449,0.05416828,58017.0,58016.0,0.421131]
[1725268705622,0.05416828,58017.0,58016.0,0.561131]
[1725268706361,0.05416828,58017.0,58016.0,1.078211]
[1725268708018,0.05416828,58017.0,58016.0,1.678211]
[1725268709008,0.05416828,58017.0,58016.0,2.039011]
[1725268709211,0.18881045,58017.0,58016.0,2.039011]
[1725268709408,0.05416828,58017.0,58016.0,2.039011]
[1725268709606,0.05316828,58017.0,58016.0,2.039011]
[1725268709808,0.00025859,58017.0,58016.0,2.042011]
[1725268711008,0.00025859,58017.0,58016.0,2.04556289]
[1725268711513,0.00025859,58017.0,58016.0,2.05356289]
[1725268711905,0.00025859,58017.0,58016.0,2.04256289]
[1725268712220,0.00025859,58017.0,58016.0,2.11389389]
[1725268712221,5.9e-07,58017.0,58016.0,2.11389389]
[1725268712720,5.9e-07,58017.0,58016.0,2.11489389]
[1725268713115,0.047,58033.0,58032.0,0.060314]
[1725268713614,0.05056017,58033.0,58032.0,0.060314]
[1725268714217,0.36105859,58038.0,58032.0,0.060314]
[1725268714435,0.36105859,58038.0,58037.0,0.200309]
[1725268714622,0.36459666,58038.0,58037.0,0.200309]
[1725268715114,0.36459666,58038.0,58037.0,0.561109]
[1725268715115,0.00379666,58038.0,58037.0,0.561109]
[1725268716107,0.00379666,58038.0,58037.0,0.562109]
[1725268718714,0.00379666,58038.0,58037.0,0.561109]
[1725268719321,0.00379666,58038.0,58037.0,0.421109]
[1725268724133,0.36459666,58038.0,58032.0,0.060314]
[1725268724339,0.0004,58033.0,58029.0,0.24]
[1725268724635,0.0004,58033.0,58032.0,0.060314]
[1725268724935,0.05329952,58033.0,58032.0,0.060314]
[1725268728132,0.05329952,58033.0,58029.0,0.3608]
[1725268728342,0.0004,58030.0,58029.0,0.421117]
[1725268728531,0.05229952,58030.0,58029.0,0.421117]
[1725268728929,0.05229952,58030.0,58029.0,0.421517]
[1725268729227,0.05129952,58030.0,58029.0,0.421517]
[1725268729842,0.05129952,58030.0,58029.0,0.422517]
[1725268730026,0.05129952,58030.0,58029.0,0.3622]
[1725268730538,0.09779952,58030.0,58029.0,0.3622]
[1725268731032,0.31928999,58030.0,58029.0,0.3622]
[1725268731436,0.45859952,58030.0,58029.0,0.0014]
[1725268732130,0.52041219,58030.0,58029.0,0.0014]
[1725268732333,1.69768819,58030.0,58029.0,0.0014]
[1725268732733,1.09768819,58030.0,58029.0,0.0014]
[1725268732937,0.98814486,58030.0,58029.0,0.0014]
[1725268733340,1.58814486,58030.0,58029.0,0.0014]
[1725268735537,0.41086886,58030.0,58029.0,0.0014]
[1725268736538,0.00356886,58030.0,58029.0,0.0014]
[1725268736735,0.0488,58034.0,58029.0,0.0014]
[1725268736940,0.0488,58034.0,58029.0,0.061717]
[1725268737142,0.14,58031.0,58029.0,0.061717]
[1725268737831,0.14,58031.0,58030.0,0.060316]
[1725268739555,0.144,58031.0,58030.0,0.061316]
[1725268739853,0.144,58031.0,58030.0,0.001]
[1725268740032,1.42386396,58031.0,58029.0,0.0004]
[1725268740346,0.26913782,58030.0,58027.0,0.00025859]
[1725268740639,0.3608,58028.0,58027.0,0.00025859]
[1725268740892,0.41370396,58028.0,58027.0,0.00025859]
[1725268741230,0.05290396,58028.0,58027.0,0.00025859]
[1725268741434,0.05290396,58029.0,58027.0,0.00025859]
[1725268741639,0.05290396,58028.0,58027.0,0.00025859]
[1725268741835,0.05290396,58029.0,58027.0,0.00125859]
[1725268742042,0.05290396,58028.0,58027.0,0.00125859]
[1725268742441,0.05790396,58028.0,58027.0,0.00125859]
[1725268743144,0.05290396,58028.0,58027.0,0.00125859]
[1725268743639,0.005,58029.0,58027.0,0.00125859]
[1725268743640,0.005,58029.0,58028.0,0.060318]
[1725268743843,0.005,58029.0,58028.0,0.421118]
[1725268744036,0.05789993,58029.0,58028.0,0.421118]
[1725268745245,0.05289993,58029.0,58028.0,0.421118]
[1725268745535,0.14,58031.0,58030.0,0.060315]
[1725268745756,0.14,58031.0,58027.0,0.00125859]
[1725268745757,0.19290017,58031.0,58027.0,0.00125859]
[1725268745842,0.19290017,58031.0,58027.0,0.00025859]
[1725268745843,0.3608,58029.0,58027.0,0.00025859]
[1725268746149,0.05190017,58028.0,58027.0,0.00025859]
[1725268746343,0.11221817,58028.0,58027.0,0.00025859]
[1725268746741,0.11121817,58028.0,58027.0,0.00025859]
[1725268746943,1.22821817,58028.0,58027.0,0.00025859]
[1725268747143,0.060324,58023.0,58015.0,0.3245]
[1725268747358,0.14,58016.0,58011.0,0.155836]
[1725268748350,0.139,58016.0,58011.0,0.0955]
[1725268748546,0.139,58016.0,58014.0,0.060332]
[1725268748967,0.141,58016.0,58014.0,0.060332]
[1725268749448,0.002,58016.0,58014.0,0.060332]
[1725268749650,0.0004,58015.0,58014.0,0.060332]
[1725268752065,0.0034,58015.0,58009.0,0.00025859]
[1725268752379,0.0004,58010.0,58009.0,0.00025859]
[1725268753255,0.0004,58010.0,58009.0,0.00325859]
[1725268756859,0.00410347,58010.0,58009.0,0.00325859]
[1725268762758,0.00410347,58010.0,58009.0,0.24325859]
[1725268763757,0.00410347,58010.0,58009.0,0.30359659]
[1725268767048,0.00410347,58010.0,58009.0,0.00325859]
[1725268769751,0.00410347,58010.0,58009.0,0.05482517]
[1725268770256,0.05702176,58010.0,58009.0,0.00325859]
[1725268771255,0.05702176,58010.0,58009.0,0.06359659]
[1725268773564,0.00410347,58010.0,58009.0,0.06359659]
[1725268774052,0.05702175,58010.0,58009.0,0.06359659]
[1725268777356,0.05702175,58010.0,58009.0,0.00325859]
[1725268778062,0.00410347,58010.0,58009.0,0.00325859]
[1725268779860,0.00410347,58010.0,58009.0,0.06359659]
[1725268782595,0.42524047,58010.0,58009.0,0.00325859]
[1725268782891,0.47464047,58010.0,58009.0,0.07223455]
[1725268783070,0.47464047,58010.0,58009.0,0.00325859]
[1725268783980,0.48264047,58010.0,58009.0,0.00125859]
[1725268786133,0.62264047,58010.0,58009.0,0.00125859]
[1725268786667,0.62264047,58010.0,57999.0,0.3608]
[1725268786668,0.56230347,58010.0,57999.0,0.3608]
[1725268786775,0.56230347,58010.0,57988.0,0.08554543]
[1725268786776,0.5012,58000.0,57993.0,0.05172107]
[1725268786869,0.0004,57994.0,57990.0,0.05172107]
[1725268787085,0.0004,58000.0,57999.0,0.060348]
[1725268787466,0.0004,58000.0,57999.0,0.25205038]
[1725268787768,0.0004,58000.0,57999.0,0.487648]
[1725268789441,0.42112,58026.0,58000.0,0.51724]
[1725268789565,0.00128,58019.0,58017.0,0.42113]
[1725268789768,0.200318,58029.0,58018.0,0.0499]
[1725268790073,0.060318,58028.0,58018.0,0.110228]
[1725268790577,0.3608,58027.0,58018.0,0.110228]
[1725268790881,0.006,58019.0,58018.0,0.110228]
[1725268791468,0.3608,58027.0,58018.0,0.111228]
[1725268791778,0.3608,58027.0,58018.0,0.1909]
[1725268792488,0.3608,58027.0,58019.0,0.0931]
[1725268792869,0.3608,58027.0,58023.0,0.060323]
[1725268793263,0.3608,58027.0,58019.0,0.0931]
[1725268793264,0.11473059,58026.0,58019.0,0.08288485]
[1725268793465,0.11473059,58025.0,58019.0,0.08288485]
[1725268793775,0.11473059,58024.0,58023.0,0.060323]
[1725268795882,0.11473059,58024.0,58023.0,0.061323]
[1725268796229,0.11473052,58024.0,58023.0,0.061323]
[1725268796372,0.11473052,58024.0,58023.0,0.060323]
[1725268796575,0.12273052,58024.0,58023.0,0.061323]
[1725268796973,0.34463169,58024.0,58023.0,0.061323]
[1725268797486,0.12273052,58024.0,58023.0,0.061323]
[1725268797976,0.12272591,58024.0,58023.0,0.061323]
[1725268800380,0.008,58024.0,58023.0,0.061323]
[1725268801972,0.00025859,58029.0,58028.0,0.060318]
[1725268802175,0.00025859,58029.0,58028.0,0.421118]
[1725268803097,0.00025859,58029.0,58028.0,0.422118]
[1725268803098,0.00825859,58029.0,58028.0,0.422118]
[1725268805097,0.00825859,58029.0,58028.0,0.662118]
[1725268806490,0.00025859,58029.0,58028.0,0.421118]
[1725268806681,0.00025859,58029.0,58028.0,0.428118]
[1725268807283,0.00025859,58029.0,58028.0,0.421118]
[1725268809083,0.00025859,58029.0,58028.0,0.061718]
[1725268809875,0.36105859,58029.0,58028.0,0.060718]
[1725268810094,0.36105859,58029.0,58028.0,0.062718]
[1725268810480,0.00025859,58029.0,58028.0,0.062718]
[1725268810682,1.12095722,58029.0,58028.0,0.0024]
[1725268810879,1.12095722,58029.0,58018.0,0.3608]
[1725268810880,1.11725859,58029.0,58018.0,0.3608]
[1725268811086,0.14,58020.0,58018.0,0.3608]
[1725268811383,0.0948,58019.0,58018.0,0.3608]
[1725268811580,1.21188,58019.0,58018.0,0.3608]
[1725268812592,0.61188,58019.0,58018.0,0.3608]
[1725268813095,0.61088,58019.0,58018.0,0.3608]
[1725268813796,0.61188,58019.0,58018.0,0.3618]
[1725268815187,1.57268,58019.0,58018.0,0.001]
[1725268815381,1.68742947,58019.0,58018.0,0.001]
[1725268816187,1.69102388,58019.0,58018.0,0.001]
[1725268816693,1.09102388,58019.0,58018.0,0.001]
[1725268818204,0.11974388,58019.0,58018.0,0.061329]
[1725268818402,0.19223059,58019.0,58018.0,0.061329]
[1725268818902,0.19223059,58019.0,58018.0,0.001]
[1725268819093,0.05791112,58019.0,58018.0,0.001]
[1725268819584,0.05691112,58019.0,58016.0,0.060331]
[1725268819786,0.24065911,58018.0,58016.0,0.060331]
[1725268820089,0.05331671,58018.0,58016.0,0.060331]
[1725268820286,0.23964178,58018.0,58016.0,0.060331]
[1725268820887,0.24064178,58018.0,58016.0,0.060331]
[1725268821594,0.05331671,58018.0,58016.0,0.060331]
[1725268822211,0.41411671,58018.0,58009.0,0.3608]
[1725268822902,1.59152571,58018.0,58009.0,0.3608]
[1725268823103,1.60144176,58018.0,58009.0,0.3608]
[1725268823401,0.06033,58017.0,57992.0,0.00369151]
[1725268823602,0.0004,58000.0,57997.0,0.06035]
[1725268823903,0.0004,58000.0,57991.0,0.3245]
[1725268823904,0.0004,58000.0,57991.0,0.060356]
[1725268824095,0.0004,58000.0,57989.0,0.1387]
[1725268824288,0.0004,58000.0,57994.0,0.060353]
[1725268824489,0.0004,58000.0,57999.0,0.0144]
[1725268827908,0.00395768,58000.0,57999.0,0.0144]
[1725268828203,0.1404,58000.0,57999.0,0.0144]
[1725268829806,0.1404,58000.0,57999.0,0.0014]
[1725268830396,0.19333105,58000.0,57999.0,0.0014]
[1725268830592,0.25367805,58000.0,57999.0,0.0014]
[1725268832797,0.577628,57999.0,57977.0,0.060371]
[1725268833102,0.200359,57989.0,57977.0,0.0949]
[1725268833300,0.05294012,57988.0,57977.0,0.0949]
[1725268833495,0.200359,57989.0,57977.0,0.0949]
[1725268833902,0.200359,57989.0,57977.0,0.4557]
[1725268834103,0.200359,57989.0,57977.0,0.4697]
[1725268834805,0.20061759,57989.0,57980.0,0.060368]
[1725268835907,0.060361,57987.0,57977.0,0.4697]
[1725268836095,0.14,57985.0,57977.0,0.4697]
[1725268836299,0.14,57985.0,57980.0,0.012]
[1725268836709,0.3608,57986.0,57980.0,0.012]
[1725268838002,0.14,57985.0,57980.0,0.012]
[1725268838399,0.14,57985.0,57978.0,0.06037]
[1725268838602,0.14,57985.0,57980.0,0.012]
[1725268839005,0.14,57985.0,57980.0,0.252]
[1725268839618,0.14,57985.0,57980.0,0.24]
[1725268840608,0.0004,57981.0,57980.0,0.24]
[1725268841121,0.0004,57981.0,57980.0,0.300368]
[1725268841713,0.0004,57981.0,57980.0,0.312368]
[1725268846722,0.0004,57981.0,57980.0,0.072368]
[1725268847022,0.0004,57981.0,57980.0,0.012]
[1725268850917,0.1404,57981.0,57980.0,0.012]
[1725268851424,0.200767,57981.0,57980.0,0.012]
[1725268852724,0.1404,57981.0,57980.0,0.012]
[1725268852920,0.0004,57981.0,57980.0,0.012]
[1725268853121,0.0004,57981.0,57977.0,0.3608]
[1725268853418,0.0004,57978.0,57977.0,0.4897745]
[1725268853720,0.0004,57978.0,57977.0,0.421171]
[1725268854821,0.0004,57978.0,57977.0,0.424171]
[1725268855624,0.0004,57978.0,57977.0,0.3638]
[1725268856617,1.47864,57978.0,57957.0,0.41028]
[1725268856824,1.47864,57978.0,57966.0,0.06884286]
[1725268856825,0.3612,57968.0,57966.0,0.06884286]
[1725268857024,0.3612,57968.0,57963.0,0.06884286]
[1725268857025,0.060384,57965.0,57963.0,0.06884286]
[1725268857323,0.1404,57964.0,57961.0,0.06884286]
[1725268857521,0.1404,57964.0,57957.0,0.3608]
[1725268857522,0.1404,57962.0,57960.0,0.06884286]
[1725268857725,0.0004,57961.0,57960.0,0.06884286]
[1725268857914,0.1404,57962.0,57960.0,0.06884286]
[1725268858115,0.14,57961.0,57960.0,0.06884286]
[1725268858322,0.14,57961.0,57959.0,0.06884286]
[1725268858630,0.0004,57962.0,57960.0,0.07744286]
[1725268858817,0.14,57961.0,57960.0,0.0086]
[1725268859217,0.14,57961.0,57960.0,0.07784286]
[1725268859424,0.14,57961.0,57960.0,0.009]
[1725268860127,0.6576,57961.0,57960.0,0.009]
[1725268860718,0.14,57961.0,57960.0,0.009]
[1725268860913,0.14,57961.0,57959.0,0.0004]
[1725268861130,0.0004,57960.0,57959.0,0.0004]
[1725268862319,0.0004,57960.0,57959.0,0.0929]
[1725268864028,0.0004,57960.0,57959.0,0.2329]
[1725268864830,0.0004,57960.0,57959.0,1.3505]
[1725268865029,0.0004,57960.0,57959.0,0.0929]
[1725268866419,0.0004,57960.0,57959.0,0.0004]
[1725268868234,0.1404,57960.0,57959.0,0.0004]
[1725268869432,0.1374,57960.0,57959.0,0.0004]
[1725268870623,0.0961,57962.0,57959.0,0.0004]
[1725268870831,0.36441726,57963.0,57961.0,0.060388]
[1725268871926,0.36841726,57963.0,57961.0,0.060388]
[1725268872130,0.37141726,57963.0,57961.0,0.060388]
[1725268872326,0.01061726,57963.0,57961.0,0.060388]
[1725268872524,0.01061726,57963.0,57962.0,0.0496]
[1725268873626,0.01061726,57963.0,57961.0,0.060388]
[1725268873935,0.0004,57962.0,57961.0,0.060388]
[1725268874432,0.01261726,57963.0,57962.0,0.0006]
[1725268875132,0.14361726,57963.0,57961.0,0.060388]
[1725268875329,0.004,57962.0,57961.0,0.060388]
[1725268875931,0.004,57962.0,57961.0,0.421188]
[1725268876131,0.01261726,57963.0,57962.0,0.061387]
[1725268877131,0.009,57963.0,57962.0,0.061387]
[1725268877339,0.008,57963.0,57962.0,0.061387]
[1725268877731,0.003,57963.0,57962.0,0.11195316]
[1725268877928,0.00025859,57967.0,57966.0,0.060383]
[1725268878123,0.00393618,57967.0,57966.0,0.060383]
[1725268878431,0.00025859,57967.0,57966.0,0.060383]
[1725268879333,0.00025859,57967.0,57966.0,0.421183]
[1725268880435,0.00025859,57967.0,57962.0,0.001]
[1725268880637,0.14,57964.0,57962.0,0.001]
[1725268881140,0.060384,57965.0,57959.0,0.42239]
[1725268881537,0.060384,57965.0,57962.0,0.0006]
[1725268882036,0.005,57964.0,57962.0,0.0016]
[1725268882251,0.009,57964.0,57962.0,0.001]
[1725268882834,0.04525859,57967.0,57960.0,0.11195516]
[1725268882835,0.004,57965.0,57964.0,0.060384]
[1725268883133,0.009,57965.0,57964.0,0.060384]
[1725268883628,0.06195983,57965.0,57964.0,0.060384]
[1725268883833,0.06195983,57965.0,57962.0,0.001]
[1725268884041,0.05295983,57964.0,57962.0,0.001]
[1725268884538,0.05295983,57964.0,57959.0,0.06199]
[1725268884539,0.05295983,57963.0,57959.0,0.0016]
[1725268884744,0.05195983,57962.0,57959.0,0.0016]
[1725268884940,0.14,57960.0,57959.0,0.0016]
[1725268886237,0.200389,57960.0,57959.0,0.0016]
[1725268886643,1.317989,57960.0,57959.0,0.0016]
[1725268886950,0.77987214,57960.0,57959.0,0.0016]
[1725268887245,1.37987214,57960.0,57959.0,0.0016]
[1725268887639,1.38342843,57960.0,57959.0,0.0016]
[1725268887843,1.38542843,57960.0,57959.0,0.0016]
[1725268888038,0.060397,57953.0,57944.0,0.3608]
[1725268888240,0.14,57950.0,57944.0,0.3608]
[1725268889341,0.0004,57945.0,57944.0,0.3698]
[1725268890244,0.05337203,57945.0,57944.0,0.3698]
[1725268890455,0.0004,57945.0,57944.0,0.3698]
[1725268890837,0.0004,57945.0,57944.0,0.3748]
[1725268891150,0.0004,57945.0,57944.0,0.3758]
[1725268891648,0.0014,57945.0,57944.0,0.3758]
[1725268891843,0.0024,57945.0,57944.0,0.3758]
[1725268892250,0.00596393,57945.0,57944.0,0.3758]
[1725268892450,0.0024,57945.0,57944.0,0.3758]
[1725268894054,0.0024,57945.0,57944.0,0.436206]
[1725268897347,0.0024,57945.0,57944.0,0.48783193]
[1725268897853,0.0024,57945.0,57944.0,0.436206]
[1725268899158,0.0024,57945.0,57944.0,1.036206]
[1725268899348,0.0024,57945.0,57944.0,1.693926]
[1725268899545,0.0024,57945.0,57944.0,1.76276886]
[1725268899859,0.0024,57945.0,57944.0,1.693926]
[1725268900246,0.00025882,57954.0,57953.0,0.060396]